[Event "CZE-ch Youth G10-G12-G14 2022"]
[Site "Luhacovice"]
[Date "2022.03.18"]
[Round "8.22"]
[White "Mojzisova Barbora"]
[Black "Kubatova Ema"]
[Result "0-1"]
[ECO "B35"]
[WhiteElo "1089"]
[BlackElo "1183"]
[Annotator "NA"]
[PlyCount "120"]
[EventDate "2022.03.12"]
[EventType "swiss"]
[EventCountry "CZE"]
[SourceTitle "playchess.com"]
[Source "ChessBase"]
[SourceQuality "1"]
[TimeControl "40/5400+30:1800+30"]

1. e4 {[%emt 0:00:04]} c5 {[%emt 0:00:11]} 2. Nf3 {[%emt 0:00:10]} Nc6 {[%emt 0:00:21]} 3. Nc3 {[%emt 0:01:21]} g6 {[%emt 0:01:04]} 4. d4 {[%emt 0:03:05]} cxd4 {[%emt 0:00:59]} 5. Nxd4 {[%emt 0:01:35]} Bg7 {[%emt 0:03:21]} 6. Nxc6 {[%emt 0:03:04]} bxc6 {[%emt 0:00:12]} 7. Bc4 {[%emt 0:03:09]} d6 {[%emt 0:06:09]} 8. Be3 {[%emt 0:04:55]} Nf6 {[%emt 0:02:28]} 9. Bb3 {[%emt 0:04:08]} Bd7 {[%emt 0:06:40]} 10. O-O {[%emt 0:03:21]} O-O {[%emt 0:00:14]} 11. Re1 {[%emt 0:03:35]} Qc7 {[%emt 0:15:37]} 12. h3 {[%emt 0:05:56]} Rfd8 {[%emt 0:07:32]} 13. Rb1 {[%emt 0:04:59]} Rac8 {[%emt 0:04:53]} 14. Re2 {[%emt 0:03:32]} Qb7 {[%emt 0:08:30]} 15. Rd2 {[%emt 0:03:34]} Re8 {[%emt 0:02:39]} 16. Rd3 {[%emt 0:09:05]} c5 {[%emt 0:02:03]} 17. Bd5 {[%emt 0:03:38]} Bc6 {[%emt 0:02:11]} 18. Bxc6 {[%emt 0:02:04]} Qxc6 {[%emt 0:00:20]} 19. f3 {[%emt 0:04:01]} Rb8 {[%emt 0:02:14]} 20. b3 {[%emt 0:02:26]} Nd7 {[%emt 0:05:08]} 21. Qd2 {[%emt 0:03:18]} Rec8 {[%emt 0:05:46]} 22. Rd1 {[%emt 0:03:30]} c4 {[%emt 0:03:17]} 23. bxc4 {[%emt 0:01:43]} Qxc4 {[%emt 0:01:14]} 24. Nd5 {[%emt 0:02:16]} Re8 {[%emt 0:05:25]} 25. Bxa7 {[%emt 0:02:55]} Ra8 {[%emt 0:01:58]} 26. Bd4 {[%emt 0:03:14]} Bxd4+ {[%emt 0:01:59]} 27. Rxd4 {[%emt 0:00:49]} Qc5 {[%emt 0:02:02]} 28. Kh2 {[%emt 0:03:34]} Rxa2 {[%emt 0:01:32]} 29. Rc1 {[%emt 0:01:23]} Qa5 {[%emt 0:03:04]} 30. Qxa5 {[%emt 0:00:59]} Rxa5 {[%emt 0:00:08]} 31. Kg3 {[%emt 0:01:46]} Rc5 {[%emt 0:01:50]} 32. f4 {[%emt 0:01:58]} Kg7 {[%emt 0:02:34]} 33. Kf3 {[%emt 0:02:17]} Nf6 {[%emt 0:01:00]} 34. Nxf6 {[%emt 0:00:55]} Kxf6 {[%emt 0:00:08]} 35. g4 {[%emt 0:00:42]} h6 {[%emt 0:01:57]} 36. h4 {[%emt 0:00:59]} Rec8 {[%emt 0:00:35]} 37. Rd2 {[%emt 0:01:11]} Rc3+ {[%emt 0:00:29]} 38. Ke2 {[%emt 0:01:02]} R3c4 {[%emt 0:00:21]} 39. Ke3 {[%emt 0:00:39]} Rc3+ {[%emt 0:00:07]} 40. Ke2 {[%emt 0:00:15]} Rh3 {[%emt 0:01:08]} 41. g5+ {[%emt 0:30:27]} Kg7 {[%emt 0:30:41]} 42. gxh6+ {[%emt 0:00:43]} Kxh6 {[%emt 0:00:07]} 43. Rf1 {[%emt 0:00:40]} Rxh4 {[%emt 0:00:44]} 44. Kd3 {[%emt 0:00:33]} Rh3+ {[%emt 0:00:38]} 45. Ke2 {[%emt 0:00:53]} Rh2+ {[%emt 0:00:15]} 46. Rf2 {[%emt 0:00:49]} Rxf2+ {[%emt 0:00:09]} 47. Kxf2 {[%emt 0:00:04]} Rc3 {[%emt 0:00:31]} 48. Re2 {[%emt 0:00:48]} Kg7 {[%emt 0:00:36]} 49. Kg2 {[%emt 0:00:49]} Kf6 {[%emt 0:00:43]} 50. Kf2 {[%emt 0:00:30]} e5 {[%emt 0:00:43]} 51. fxe5+ {[%emt 0:00:16]} dxe5 {[%emt 0:00:07]} 52. Kg2 {[%emt 0:01:12]} Kg5 {[%emt 0:00:22]} 53. Rf2 {[%emt 0:01:15]} f5 {[%emt 0:00:19]} 54. exf5 {[%emt 0:00:14]} gxf5 {[%emt 0:00:05]} 55. Kh2 {[%emt 0:00:28]} f4 {[%emt 0:00:29]} 56. Re2 {[%emt 0:00:31]} Kf5 {[%emt 0:00:46]} 57. Kg1 {[%emt 0:00:28]} e4 {[%emt 0:00:15]} 58. Kf1 {[%emt 0:00:28]} f3 {[%emt 0:00:37]} 59. Rf2 {[%emt 0:00:08]} Kf4 {[%emt 0:00:11]} 60. Ke1 {[%emt 0:00:26]} e3 {[%emt 0:00:34]} 0-1

[Event "CZE-ch Youth G10-G12-G14 2022"]
[Site "Luhacovice"]
[Date "2022.03.18"]
[Round "8.23"]
[White "Nova Anezka"]
[Black "Rezacova Julie"]
[Result "1-0"]
[ECO "C50"]
[WhiteElo "1111"]
[BlackElo "1063"]
[Annotator "NA"]
[PlyCount "82"]
[EventDate "2022.03.12"]
[EventType "swiss"]
[EventCountry "CZE"]
[SourceTitle "playchess.com"]
[Source "ChessBase"]
[SourceQuality "1"]
[TimeControl "40/5400+30:1800+30"]

1. e4 {[%emt 0:00:05]} e5 {[%emt 0:00:04]} 2. Nf3 {[%emt 0:00:05]} Nc6 {[%emt 0:00:05]} 3. d4 {[%emt 0:00:08]} exd4 {[%emt 0:00:46]} 4. Bc4 {[%emt 0:00:06]} d6 {[%emt 0:00:22]} 5. Nxd4 {[%emt 0:00:24]} Be7 {[%emt 0:00:30]} 6. O-O {[%emt 0:02:30]} Nf6 {[%emt 0:00:10]} 7. Nc3 {[%emt 0:00:54]} O-O {[%emt 0:00:10]} 8. Re1 {[%emt 0:04:27]} Nxd4 {[%emt 0:00:22]} 9. Qxd4 {[%emt 0:00:32]} c5 {[%emt 0:00:19]} 10. Qd3 {[%emt 0:01:24]} Qd7 {[%emt 0:00:39]} 11. Qg3 {[%emt 0:03:01]} Nh5 {[%emt 0:00:51]} 12. Qf3 {[%emt 0:01:17]} Qg4 {[%emt 0:00:36]} 13. Qxg4 {[%emt 0:00:37]} Bxg4 {[%emt 0:00:06]} 14. f3 {[%emt 0:00:22]} Be6 {[%emt 0:01:09]} 15. Bxe6 {[%emt 0:02:06]} fxe6 {[%emt 0:00:07]} 16. Be3 {[%emt 0:02:17]} Rad8 {[%emt 0:01:29]} 17. Rad1 {[%emt 0:01:57]} a6 {[%emt 0:01:12]} 18. Re2 {[%emt 0:04:14]} b5 {[%emt 0:00:29]} 19. Bf2 {[%emt 0:03:26]} Nf4 {[%emt 0:00:46]} 20. Re3 {[%emt 0:01:02]} b4 {[%emt 0:00:13]} 21. Na4 {[%emt 0:00:48]} d5 {[%emt 0:00:31]} 22. exd5 {[%emt 0:00:47]} Nxd5 {[%emt 0:00:20]} 23. Rxe6 {[%emt 0:00:21]} Bf6 {[%emt 0:00:53]} 24. Bxc5 {[%emt 0:00:49]} Nf4 {[%emt 0:00:32]} 25. Rxd8 {[%emt 0:01:57]} Rxd8 {[%emt 0:00:43]} 26. Rxa6 {[%emt 0:04:29]} Rd1+ {[%emt 0:00:33]} 27. Kf2 {[%emt 0:00:27]} Rd8 {[%emt 0:02:14]} 28. Be3 {[%emt 0:07:02]} Nd5 {[%emt 0:00:57]} 29. Re6 {[%emt 0:04:29]} Nxe3 {[%emt 0:00:31]} 30. Kxe3 {[%emt 0:00:56]} Bd4+ {[%emt 0:00:25]} 31. Ke4 {[%emt 0:02:09]} Bf6 {[%emt 0:00:37]} 32. Rb6 {[%emt 0:06:09]} Rd4+ {[%emt 0:00:21]} 33. Ke3 {[%emt 0:00:24]} Rc4 {[%emt 0:00:49]} 34. g4 {[%emt 0:03:55]} Bd4+ {[%emt 0:00:33]} 35. Kd3 {[%emt 0:00:30]} Bxb6 {[%emt 0:00:07]} 36. Kxc4 {[%emt 0:00:03]} Bg1 {[%emt 0:00:32]} 37. Kxb4 {[%emt 0:00:29]} Bxh2 {[%emt 0:00:08]} 38. c4 {[%emt 0:00:42]} g5 {[%emt 0:00:09]} 39. c5 {[%emt 0:00:38]} Kg7 {[%emt 0:00:06]} 40. c6 {[%emt 0:00:26]} Kg6 {[%emt 0:00:21]} 41. Kb5 {[%emt 0:30:26]} h5 {[%emt 0:30:20]} 1-0

[Event "CZE-ch Youth G10-G12-G14 2022"]
[Site "Luhacovice"]
[Date "2022.03.18"]
[Round "8.24"]
[White "Kubatova Beta"]
[Black "Archlebova Iva"]
[Result "1-0"]
[ECO "C45"]
[WhiteElo "1071"]
[BlackElo "1028"]
[Annotator "NA"]
[PlyCount "36"]
[EventDate "2022.03.12"]
[EventType "swiss"]
[EventCountry "CZE"]
[SourceTitle "playchess.com"]
[Source "ChessBase"]
[SourceQuality "1"]
[TimeControl "40/5400+30:1800+30"]

1. e4 {[%emt 0:00:03]} e5 {[%emt 0:00:16]} 2. Nf3 {[%emt 0:00:14]} Nc6 {[%emt 0:00:38]} 3. d4 {[%emt 0:00:18]} exd4 {[%emt 0:00:29]} 4. Nxd4 {[%emt 0:00:06]} Bc5 {[%emt 0:00:50]} 5. Nb3 {[%emt 0:00:16]} Bb6 {[%emt 0:00:40]} 6. Nc3 {[%emt 0:00:37]} d6 {[%emt 0:01:02]} 7. Bd3 {[%emt 0:01:05]} Nf6 {[%emt 0:00:29]} 8. O-O {[%emt 0:00:25]} O-O {[%emt 0:00:19]} 9. Bg5 {[%emt 0:00:09]} h6 {[%emt 0:02:13]} 10. Bh4 {[%emt 0:01:04]} Be6 {[%emt 0:03:13]} 11. Re1 {[%emt 0:06:53]} Nd4 {[%emt 0:03:01]} 12. Nxd4 {[%emt 0:11:27]} Bxd4 {[%emt 0:00:41]} 13. Qe2 {[%emt 0:01:39]} Bg4 {[%emt 0:03:15]} 14. Qxg4 {[%emt 0:09:36]} Nxg4 {[%emt 0:00:27]} 15. Bxd8 {[%emt 0:00:05]} Raxd8 {[%emt 0:00:25]} 16. Rf1 {[%emt 0:00:41]} Ne5 {[%emt 0:02:29]} 17. Rad1 {[%emt 0:11:16]} Nxd3 {[%emt 0:02:53]} 18. g4 {[%emt 0:08:18]} g6 {[%emt 0:05:25]} 1-0

[Event "CZE-ch Youth G10-G12-G14 2022"]
[Site "Luhacovice"]
[Date "2022.03.18"]
[Round "8.25"]
[White "Martinkovicova Nela"]
[Black "Archlebova Eva"]
[Result "1/2-1/2"]
[ECO "C34"]
[WhiteElo "1032"]
[BlackElo "1040"]
[Annotator "NA"]
[PlyCount "75"]
[EventDate "2022.03.12"]
[EventType "swiss"]
[EventCountry "CZE"]
[SourceTitle "playchess.com"]
[Source "ChessBase"]
[SourceQuality "1"]
[TimeControl "40/5400+30:1800+30"]

1. e4 {[%emt 0:00:14]} e5 {[%emt 0:00:05]} 2. f4 {[%emt 0:00:20]} exf4 {[%emt 0:02:00]} 3. Nf3 {[%emt 0:00:16]} Bc5 {[%emt 0:00:22]} 4. d4 {[%emt 0:01:21]} Bb4+ {[%emt 0:00:13]} 5. c3 {[%emt 0:01:21]} Bd6 {[%emt 0:00:34]} 6. e5 {[%emt 0:01:48]} Be7 {[%emt 0:01:37]} 7. Bxf4 {[%emt 0:01:52]} d6 {[%emt 0:01:01]} 8. Bd3 {[%emt 0:03:24]} dxe5 {[%emt 0:04:00]} 9. Bxe5 {[%emt 0:01:22]} Bg4 {[%emt 0:02:23]} 10. Bxg7 {[%emt 0:01:44]} Bh4+ {[%emt 0:04:09]} 11. g3 {[%emt 0:01:41]} Qd5 {[%emt 0:03:34]} 12. Nbd2 {[%emt 0:01:43]} Bg5 {[%emt 0:01:11]} 13. Ne4 {[%emt 0:03:06]} Qe6 {[%emt 0:05:54]} 14. Nfxg5 {[%emt 0:08:35]} Qe7 {[%emt 0:07:49]} 15. Be2 {[%emt 0:08:05]} Nd7 {[%emt 0:03:48]} 16. Bxh8 {[%emt 0:07:02]} Bf5 {[%emt 0:01:13]} 17. Nf2 {[%emt 0:02:29]} Qxg5 {[%emt 0:02:14]} 18. Qd2 {[%emt 0:04:19]} Qe7 {[%emt 0:03:02]} 19. O-O-O {[%emt 0:02:53]} O-O-O {[%emt 0:03:28]} 20. Bg4 {[%emt 0:02:00]} Bg6 {[%emt 0:01:25]} 21. Qe1 {[%emt 0:03:07]} Qd6 {[%emt 0:01:25]} 22. Be5 {[%emt 0:02:49]} Qd5 {[%emt 0:03:27]} 23. Rg1 {[%emt 0:05:39]} Qxa2 {[%emt 0:01:03]} 24. Bxd7+ {[%emt 0:03:32]} Rxd7 {[%emt 0:00:26]} 25. Bxc7 {[%emt 0:05:16]} Kxc7 {[%emt 0:00:57]} 26. Qe5+ {[%emt 0:00:30]} Rd6 {[%emt 0:00:59]} 27. Qc5+ {[%emt 0:00:55]} Rc6 {[%emt 0:00:24]} 28. Qe5+ {[%emt 0:02:26]} Rd6 {[%emt 0:00:09]} 29. Qe2 {[%emt 0:04:02]} Re6 {[%emt 0:00:27]} 30. Qf3 {[%emt 0:02:25]} Qb3 {[%emt 0:00:21]} 31. Rd2 {[%emt 0:00:59]} Ra6 {[%emt 0:01:01]} 32. Qf4+ {[%emt 0:01:17]} Kb6 {[%emt 0:00:22]} 33. Qd6+ {[%emt 0:01:02]} Kb5 {[%emt 0:00:38]} 34. Qd7+ {[%emt 0:02:17]} Kb6 {[%emt 0:00:40]} 35. Qd6+ {[%emt 0:00:46]} Kb5 {[%emt 0:00:08]} 36. Qd7+ {[%emt 0:00:48]} Kb6 {[%emt 0:00:18]} 37. Qd6+ {[%emt 0:00:42]} Kb5 {[%emt 0:01:07]} 38. Qd7+ {[%emt 0:00:27]} 1/2-1/2

[Event "CZE-ch Youth G10-G12-G14 2022"]
[Site "Luhacovice"]
[Date "2022.03.18"]
[Round "8.26"]
[White "Maresova Denisa"]
[Black "Spetlova Stella"]
[Result "1-0"]
[ECO "A30"]
[WhiteElo "1103"]
[BlackElo "1000"]
[Annotator "NA"]
[PlyCount "50"]
[EventDate "2022.03.12"]
[EventType "swiss"]
[EventCountry "CZE"]
[SourceTitle "playchess.com"]
[Source "ChessBase"]
[SourceQuality "1"]
[TimeControl "40/5400+30:1800+30"]

1. c4 {[%emt 0:00:03]} c5 {[%emt 0:01:01]} 2. Nc3 {[%emt 0:00:07]} Nc6 {[%emt 0:00:47]} 3. g3 {[%emt 0:00:18]} b6 {[%emt 0:01:21]} 4. Bg2 {[%emt 0:00:16]} Bb7 {[%emt 0:01:23]} 5. Nf3 {[%emt 0:05:19]} Nf6 {[%emt 0:03:24]} 6. O-O {[%emt 0:01:07]} e6 {[%emt 0:02:18]} 7. d3 {[%emt 0:00:41]} Be7 {[%emt 0:01:51]} 8. Bf4 {[%emt 0:03:56]} O-O {[%emt 0:02:27]} 9. Nb5 {[%emt 0:08:51]} d6 {[%emt 0:06:47]} 10. a3 {[%emt 0:09:52]} a6 {[%emt 0:09:36]} 11. Nc3 {[%emt 0:00:16]} Nd4 {[%emt 0:04:35]} 12. e4 {[%emt 0:08:16]} Nxf3+ {[%emt 0:06:50]} 13. Bxf3 {[%emt 0:19:59]} e5 {[%emt 0:29:37]} 14. Bd2 {[%emt 0:09:59]} Bc8 {[%emt 0:07:50]} 15. Re1 {[%emt 0:00:30]} Bh3 {[%emt 0:00:30]} 16. g4 {[%emt 0:00:30]} Qd7 {[%emt 0:00:30]} 17. Bg5 {[%emt 0:00:30]} h6 {[%emt 0:00:30]} 18. Bxf6 {[%emt 0:00:30]} Bxf6 {[%emt 0:00:30]} 19. Re3 {[%emt 0:00:30]} h5 {[%emt 0:00:30]} 20. gxh5 {[%emt 0:00:30]} Bg5 {[%emt 0:03:36]} 21. Re1 {[%emt 0:14:51]} Kh8 {[%emt 0:00:30]} 22. Nd5 {[%emt 0:00:30]} Rg8 {[%emt 0:00:30]} 23. Nxb6 {[%emt 0:00:30]} Qe6 {[%emt 0:00:30]} 24. Nxa8 {[%emt 0:00:30]} Rxa8 {[%emt 0:00:30]} 25. b4 {[%emt 0:00:30]} Bg4 {[%emt 0:01:38]} 1-0

[Event "CZE-ch Youth G10-G12-G14 2022"]
[Site "Luhacovice"]
[Date "2022.03.18"]
[Round "8.27"]
[White "Havelkova Kamila"]
[Black "Pruskova, Justyna"]
[Result "0-1"]
[ECO "C51"]
[WhiteElo "1092"]
[BlackElo "1003"]
[Annotator "NA"]
[PlyCount "59"]
[EventDate "2022.03.12"]
[EventType "swiss"]
[EventCountry "CZE"]
[SourceTitle "playchess.com"]
[Source "ChessBase"]
[SourceQuality "1"]
[TimeControl "40/5400+30:1800+30"]

1. e4 {[%emt 0:00:07]} e5 {[%emt 0:00:00]} 2. Nf3 {[%emt 0:00:13]} Nc6 {[%emt 0:00:13]} 3. Bc4 {[%emt 0:00:30]} Bc5 {[%emt 0:00:30]} 4. b4 {[%emt 0:00:40]} Bxb4 {[%emt 0:01:02]} 5. c3 {[%emt 0:00:46]} Be7 {[%emt 0:00:30]} 6. d4 {[%emt 0:00:30]} Na5 {[%emt 0:05:20]} 7. Be2 {[%emt 0:00:31]} Nf6 {[%emt 0:08:48]} 8. O-O {[%emt 0:14:07]} Nxe4 {[%emt 0:00:30]} 9. Bd3 {[%emt 0:00:30]} d5 {[%emt 0:00:30]} 10. dxe5 {[%emt 0:00:30]} Bg4 {[%emt 0:00:30]} 11. Qa4+ {[%emt 0:00:30]} Nc6 {[%emt 0:07:06]} 12. Nd4 {[%emt 0:13:54]} Nc5 {[%emt 0:00:30]} 13. Qc2 {[%emt 0:00:30]} Nxd3 {[%emt 0:00:30]} 14. Qxd3 {[%emt 0:00:30]} Nxd4 {[%emt 0:00:30]} 15. Qxd4 {[%emt 0:00:30]} Be6 {[%emt 0:00:30]} 16. Bf4 {[%emt 0:00:30]} Bg5 {[%emt 0:00:30]} 17. Bg3 {[%emt 0:00:30]} O-O {[%emt 0:00:30]} 18. f4 {[%emt 0:00:30]} Bh4 {[%emt 0:00:30]} 19. f5 {[%emt 0:00:30]} Bxg3 {[%emt 0:00:30]} 20. hxg3 {[%emt 0:00:02]} Bd7 {[%emt 0:00:34]} 21. Qg4 {[%emt 0:01:10]} h6 {[%emt 0:01:42]} 22. Nd2 {[%emt 0:01:12]} Bb5 {[%emt 0:01:00]} 23. f6 {[%emt 0:00:42]} g6 {[%emt 0:00:53]} 24. Rf2 {[%emt 0:01:46]} Qd7 {[%emt 0:01:06]} 25. Qh4 {[%emt 0:00:43]} Kh7 {[%emt 0:03:07]} 26. g4 {[%emt 0:02:17]} g5 {[%emt 0:01:31]} 27. Qh5 {[%emt 0:01:53]} Bd3 {[%emt 0:01:03]} 28. g3 {[%emt 0:00:57]} Bg6 {[%emt 0:03:15]} 29. Qh3 {[%emt 0:01:16]} Kg8 {[%emt 0:01:31]} 30. Rh2 {[%emt 0:01:31]} 0-1

[Event "CZE-ch Youth G10-G12-G14 2022"]
[Site "Luhacovice"]
[Date "2022.03.18"]
[Round "8.28"]
[White "Zezulova Sara"]
[Black "Kubickova Linda"]
[Result "1-0"]
[ECO "C00"]
[WhiteElo "1000"]
[BlackElo "1000"]
[Annotator "NA"]
[PlyCount "45"]
[EventDate "2022.03.12"]
[EventType "swiss"]
[EventCountry "CZE"]
[SourceTitle "playchess.com"]
[Source "ChessBase"]
[SourceQuality "1"]
[TimeControl "40/5400+30:1800+30"]

1. e4 {[%emt 0:00:05]} e6 {[%emt 0:00:09]} 2. Nc3 {[%emt 0:00:18]} d5 {[%emt 0:00:18]} 3. e5 {[%emt 0:01:29]} Bb4 {[%emt 0:00:40]} 4. Nf3 {[%emt 0:00:48]} Ne7 {[%emt 0:00:58]} 5. Bd3 {[%emt 0:01:34]} O-O {[%emt 0:00:58]} 6. O-O {[%emt 0:00:39]} d4 {[%emt 0:01:01]} 7. Ne4 {[%emt 0:01:25]} Nf5 {[%emt 0:01:41]} 8. a3 {[%emt 0:02:13]} Be7 {[%emt 0:01:40]} 9. Qe2 {[%emt 0:02:15]} Nc6 {[%emt 0:03:45]} 10. c3 {[%emt 0:02:27]} Qd5 {[%emt 0:07:22]} 11. Neg5 {[%emt 0:06:52]} Bxg5 {[%emt 0:00:54]} 12. Nxg5 {[%emt 0:01:44]} h6 {[%emt 0:01:42]} 13. Nf3 {[%emt 0:02:25]} b6 {[%emt 0:05:40]} 14. Bxf5 {[%emt 0:04:48]} exf5 {[%emt 0:02:54]} 15. d3 {[%emt 0:02:53]} Bb7 {[%emt 0:05:01]} 16. Bf4 {[%emt 0:04:07]} g5 {[%emt 0:01:49]} 17. Bd2 {[%emt 0:02:29]} Nxe5 {[%emt 0:01:39]} 18. Qxe5 {[%emt 0:10:07]} Qd7 {[%emt 0:02:45]} 19. Nxd4 {[%emt 0:03:59]} Rfe8 {[%emt 0:00:58]} 20. Qb5 {[%emt 0:02:55]} c6 {[%emt 0:02:18]} 21. Qxf5 {[%emt 0:02:08]} Qd6 {[%emt 0:03:58]} 22. Rae1 {[%emt 0:02:28]} c5 {[%emt 0:01:06]} 23. Nf3 {[%emt 0:03:33]} 1-0

[Event "CZE-ch Youth G10-G12-G14 2022"]
[Site "Luhacovice"]
[Date "2022.03.18"]
[Round "8.29"]
[White "Barteckova, Denisa"]
[Black "Rybackova, Lucie"]
[Result "0-1"]
[ECO "B43"]
[WhiteElo "1323"]
[BlackElo "1612"]
[Annotator "NA"]
[PlyCount "78"]
[EventDate "2022.03.12"]
[EventType "swiss"]
[EventCountry "CZE"]
[SourceTitle "playchess.com"]
[Source "ChessBase"]
[SourceQuality "1"]
[TimeControl "40/5400+30:1800+30"]

1. e4 {[%emt 0:00:03]} c5 {[%emt 0:00:27]} 2. Nf3 {[%emt 0:00:11]} e6 {[%emt 0:00:25]} 3. d4 {[%emt 0:00:56]} cxd4 {[%emt 0:00:50]} 4. Nxd4 {[%emt 0:00:16]} a6 {[%emt 0:00:50]} 5. Nc3 {[%emt 0:06:26]} Qc7 {[%emt 0:01:41]} 6. a3 {[%emt 0:03:31]} Nf6 {[%emt 0:03:28]} 7. Be3 {[%emt 0:03:23]} b5 {[%emt 0:03:15]} 8. Bd3 {[%emt 0:01:51]} Bb7 {[%emt 0:01:23]} 9. f3 {[%emt 0:03:27]} Be7 {[%emt 0:12:55]} 10. O-O {[%emt 0:00:56]} d6 {[%emt 0:01:55]} 11. Na2 {[%emt 0:02:56]} O-O {[%emt 0:02:18]} 12. Rc1 {[%emt 0:02:31]} d5 {[%emt 0:02:20]} 13. exd5 {[%emt 0:02:26]} Nxd5 {[%emt 0:01:21]} 14. Qe2 {[%emt 0:14:11]} Nxe3 {[%emt 0:04:39]} 15. Qxe3 {[%emt 0:00:19]} Bc5 {[%emt 0:02:29]} 16. b4 {[%emt 0:07:50]} Ba7 {[%emt 0:00:58]} 17. f4 {[%emt 0:13:26]} Bd5 {[%emt 0:06:59]} 18. c4 {[%emt 0:01:01]} bxc4 {[%emt 0:00:34]} 19. Bxc4 {[%emt 0:00:10]} Bxc4 {[%emt 0:00:14]} 20. Rc3 {[%emt 0:01:16]} Rd8 {[%emt 0:00:32]} 21. Rd1 {[%emt 0:01:36]} f6 {[%emt 0:12:11]} 22. Kh1 {[%emt 0:05:13]} e5 {[%emt 0:06:15]} 23. fxe5 {[%emt 0:01:36]} Qxe5 {[%emt 0:01:06]} 24. Qxe5 {[%emt 0:00:39]} fxe5 {[%emt 0:00:12]} 25. Rxc4 {[%emt 0:00:11]} exd4 {[%emt 0:00:38]} 26. Nc1 {[%emt 0:00:28]} Nd7 {[%emt 0:00:29]} 27. Nd3 {[%emt 0:00:33]} Rac8 {[%emt 0:01:05]} 28. Rdc1 {[%emt 0:00:50]} Nb6 {[%emt 0:00:46]} 29. Rc7 {[%emt 0:00:57]} Bb8 {[%emt 0:02:53]} 30. R7c6 {[%emt 0:01:57]} Rxc6 {[%emt 0:02:25]} 31. Rxc6 {[%emt 0:00:08]} Nd7 {[%emt 0:00:30]} 32. Rc1 {[%emt 0:03:13]} Ne5 {[%emt 0:00:33]} 33. Rd1 {[%emt 0:00:25]} Nxd3 {[%emt 0:00:55]} 34. Rxd3 {[%emt 0:00:07]} Kf7 {[%emt 0:00:23]} 35. Kg1 {[%emt 0:00:22]} Ba7 {[%emt 0:01:08]} 36. Kf2 {[%emt 0:00:55]} Re8 {[%emt 0:00:58]} 37. Rh3 {[%emt 0:01:00]} d3+ {[%emt 0:00:18]} 38. Kf1 {[%emt 0:01:25]} d2 {[%emt 0:00:12]} 39. Rf3+ {[%emt 0:00:21]} Kg8 {[%emt 0:00:09]} 0-1

[Event "CZE-ch Youth G10-G12-G14 2022"]
[Site "Luhacovice"]
[Date "2022.03.18"]
[Round "8.30"]
[White "Dobsa, Emma"]
[Black "Brezikova, Beata"]
[Result "0-1"]
[ECO "C57"]
[WhiteElo "1425"]
[BlackElo "1266"]
[Annotator "NA"]
[PlyCount "60"]
[EventDate "2022.03.12"]
[EventType "swiss"]
[EventCountry "CZE"]
[SourceTitle "playchess.com"]
[Source "ChessBase"]
[SourceQuality "1"]
[TimeControl "40/5400+30:1800+30"]

1. e4 {[%emt 0:00:41]} e5 {[%emt 0:00:04]} 2. Nf3 {[%emt 0:00:05]} Nc6 {[%emt 0:00:04]} 3. Bc4 {[%emt 0:00:09]} Nf6 {[%emt 0:00:07]} 4. Ng5 {[%emt 0:00:04]} d5 {[%emt 0:00:05]} 5. exd5 {[%emt 0:00:05]} b5 {[%emt 0:00:09]} 6. Bf1 {[%emt 0:00:05]} Nd4 {[%emt 0:00:06]} 7. c3 {[%emt 0:00:04]} Nxd5 {[%emt 0:00:05]} 8. cxd4 {[%emt 0:00:09]} Qxg5 {[%emt 0:00:10]} 9. Bxb5+ {[%emt 0:00:04]} Kd8 {[%emt 0:00:06]} 10. O-O {[%emt 0:00:06]} Bb7 {[%emt 0:00:13]} 11. Qf3 {[%emt 0:00:08]} Rb8 {[%emt 0:00:18]} 12. dxe5 {[%emt 0:00:08]} Ne3 {[%emt 0:00:22]} 13. Qh3 {[%emt 0:00:06]} Qxg2+ {[%emt 0:00:14]} 14. Qxg2 {[%emt 0:00:06]} Nxg2 {[%emt 0:00:05]} 15. d4 {[%emt 0:00:06]} Be7 {[%emt 0:00:20]} 16. d5 {[%emt 0:00:37]} Nh4 {[%emt 0:31:20]} 17. Be2 {[%emt 0:00:10]} Ke8 {[%emt 0:06:06]} 18. Nc3 {[%emt 0:04:06]} a6 {[%emt 0:07:41]} 19. Bf4 {[%emt 0:17:28]} g5 {[%emt 0:15:15]} 20. Bg3 {[%emt 0:08:12]} Nf5 {[%emt 0:01:57]} 21. Rad1 {[%emt 0:18:11]} Rd8 {[%emt 0:14:20]} 22. Rd2 {[%emt 0:13:08]} h5 {[%emt 0:05:36]} 23. h3 {[%emt 0:10:18]} Bc5 {[%emt 0:05:39]} 24. Bh2 {[%emt 0:05:24]} Nd4 {[%emt 0:02:47]} 25. Ne4 {[%emt 0:10:16]} Bb6 {[%emt 0:05:49]} 26. Nf6+ {[%emt 0:02:14]} Ke7 {[%emt 0:00:51]} 27. Bxh5 {[%emt 0:06:46]} Rxh5 {[%emt 0:02:27]} 28. Rxd4 {[%emt 0:00:16]} Rxh3 {[%emt 0:00:43]} 29. Rd2 {[%emt 0:01:22]} Rdh8 {[%emt 0:00:38]} 30. Bg3 {[%emt 0:00:36]} Rxg3# {[%emt 0:00:10]} 0-1